{"text_format":"3","workbook":"xlsx","n_sheets":1,"sheets":["Relatório de Despesas"],"not_rendered":{"images":2,"defined_names":12},"read":"whole","date_system":"1900"}

{"sheet":"Relatório de Despesas","index":0,"n_rows":24,"n_cols":13,"rows_kept":24,"merged":[[3,2,3,3],[3,5,3,6],[3,9,3,10],[4,2,4,3],[4,5,4,6],[4,9,4,10],[5,2,5,3],[5,5,5,6],[5,9,5,10],[6,2,6,3],[6,5,6,6],[6,9,6,10],[7,9,7,10]]}
[null,"RELATÓRIO DE DESPESAS"]
[null,"CONTOSO, LTD"]
[null,"Rua das Flores, N.º 12, 1234-567 Lisboa"]
[null,"TELEFONE",4255550121,null,"NOME","Constância Botas",null,null,"MOTIVO","Seminário de Vendas Anual",null,"TAXA DE QUILOMETRAGEM",{"v":0.5,"d":"0.50 $/milha"}]
[null,"FAX",4255550122,null,"DEPARTAMENTO","Vendas",null,null,"INÍCIO",{"$f":"IFERROR(MIN(Despesas[DATA]),\"\")","v":"2018-06-04"},null,"TAXA DE REFEIÇÕES",{"v":30,"d":"30.00 $/dia"}]
[null,"E-MAIL","info@contoso.com",null,"CARGO","Diretor Executivo",null,null,"FIM",{"$f":"IFERROR(MAX(Despesas[DATA]),\"\")","v":"2018-07-04"},null,"TAXA DE HOTEL",{"v":200,"d":"200.00 $/noite"}]
[null,"WEB","www.contoso.com",null,"GESTOR","Diogo Cunha",null,null,"ELABORADO POR","Constância Botas",null,"TAXA DE TELEFONE",{"v":10,"d":"10.00 $/dia"}]
[{"$nulls":8},"APROVADO POR","Diogo Cunha",null,"TAXA DE DIVERSOS ",{"v":50,"d":"50.00 $/dia"}]
[]
[null,"DATA","CONTA","DESCRIÇÃO","HOTEL","TRANSPORTE","REFEIÇÕES","TELEFONE","DIVERSOS","CONTA-QUILÓMETROS \nINICIAL","CONTA-QUILÓMETROS \nFINAL","QUILOMETRAGEM TOTAL","TOTAL "]
[null,{"$f":"TODAY()","v":"2018-06-04"},"Vendas","Quilometragem",{"$nulls":4},{"v":50,"d":"50.00 €"},{"v":11378.5,"d":"11,378.5 milhas"},{"v":11456.2,"d":"11,456.2 milhas"},{"$f":"IF(COUNTA(Despesas[[#This Row],[CONTA-QUILÓMETROS \nINICIAL]:[CONTA-QUILÓMETROS \nFINAL]])=2,(Despesas[[#This Row],[CONTA-QUILÓMETROS \nFINAL]]-Despesas[[#This Row],[CONTA-QUILÓMETROS \nINICIAL]])*TaxaDeQuilometragem,\"\")","v":{"v":38.850000000000364,"d":"38.85 €"}},{"$f":"IF(COUNTA(Despesas[[#This Row],[DATA]:[CONTA-QUILÓMETROS \nFINAL]])=0,\"\",SUM(Despesas[[#This Row],[HOTEL]:[TRANSPORTE]],Despesas[[#This Row],[REFEIÇÕES]:[DIVERSOS]],((Despesas[[#This Row],[CONTA-QUILÓMETROS \nFINAL]]-Despesas[[#This Row],[CONTA-QUILÓMETROS \nINICIAL]])*(TaxaDeQuilometragem))))","v":{"v":88.85000000000036,"d":"88.85 €"}}]
[null,{"$f":"TODAY()+30","v":"2018-07-04"},"Vendas","Convenção",{"v":445,"d":"445.00 €"},{"v":225,"d":"225.00 €"},{"v":20,"d":"20.00 €"},null,{"v":5,"d":"5.00 €"},{"v":11500,"d":"11,500.0 milhas"},{"v":11560,"d":"11,560.0 milhas"},{"$f":"IF(COUNTA(Despesas[[#This Row],[CONTA-QUILÓMETROS \nINICIAL]:[CONTA-QUILÓMETROS \nFINAL]])=2,(Despesas[[#This Row],[CONTA-QUILÓMETROS \nFINAL]]-Despesas[[#This Row],[CONTA-QUILÓMETROS \nINICIAL]])*TaxaDeQuilometragem,\"\")","v":{"v":30,"d":"30.00 €"}},{"$f":"IF(COUNTA(Despesas[[#This Row],[DATA]:[CONTA-QUILÓMETROS \nFINAL]])=0,\"\",SUM(Despesas[[#This Row],[HOTEL]:[TRANSPORTE]],Despesas[[#This Row],[REFEIÇÕES]:[DIVERSOS]],((Despesas[[#This Row],[CONTA-QUILÓMETROS \nFINAL]]-Despesas[[#This Row],[CONTA-QUILÓMETROS \nINICIAL]])*(TaxaDeQuilometragem))))","v":{"v":725,"d":"725.00 €"}}]
[{"$nulls":11},{"$f":"IF(COUNTA(Despesas[[#This Row],[CONTA-QUILÓMETROS \nINICIAL]:[CONTA-QUILÓMETROS \nFINAL]])=2,(Despesas[[#This Row],[CONTA-QUILÓMETROS \nFINAL]]-Despesas[[#This Row],[CONTA-QUILÓMETROS \nINICIAL]])*TaxaDeQuilometragem,\"\")","v":""},{"$f":"IF(COUNTA(Despesas[[#This Row],[DATA]:[CONTA-QUILÓMETROS \nFINAL]])=0,\"\",SUM(Despesas[[#This Row],[HOTEL]:[TRANSPORTE]],Despesas[[#This Row],[REFEIÇÕES]:[DIVERSOS]],((Despesas[[#This Row],[CONTA-QUILÓMETROS \nFINAL]]-Despesas[[#This Row],[CONTA-QUILÓMETROS \nINICIAL]])*(TaxaDeQuilometragem))))","v":""}]
[{"$nulls":11},{"$f":"IF(COUNTA(Despesas[[#This Row],[CONTA-QUILÓMETROS \nINICIAL]:[CONTA-QUILÓMETROS \nFINAL]])=2,(Despesas[[#This Row],[CONTA-QUILÓMETROS \nFINAL]]-Despesas[[#This Row],[CONTA-QUILÓMETROS \nINICIAL]])*TaxaDeQuilometragem,\"\")","v":""},{"$f":"IF(COUNTA(Despesas[[#This Row],[DATA]:[CONTA-QUILÓMETROS \nFINAL]])=0,\"\",SUM(Despesas[[#This Row],[HOTEL]:[TRANSPORTE]],Despesas[[#This Row],[REFEIÇÕES]:[DIVERSOS]],((Despesas[[#This Row],[CONTA-QUILÓMETROS \nFINAL]]-Despesas[[#This Row],[CONTA-QUILÓMETROS \nINICIAL]])*(TaxaDeQuilometragem))))","v":""}]
[{"$nulls":11},{"$f":"IF(COUNTA(Despesas[[#This Row],[CONTA-QUILÓMETROS \nINICIAL]:[CONTA-QUILÓMETROS \nFINAL]])=2,(Despesas[[#This Row],[CONTA-QUILÓMETROS \nFINAL]]-Despesas[[#This Row],[CONTA-QUILÓMETROS \nINICIAL]])*TaxaDeQuilometragem,\"\")","v":""},{"$f":"IF(COUNTA(Despesas[[#This Row],[DATA]:[CONTA-QUILÓMETROS \nFINAL]])=0,\"\",SUM(Despesas[[#This Row],[HOTEL]:[TRANSPORTE]],Despesas[[#This Row],[REFEIÇÕES]:[DIVERSOS]],((Despesas[[#This Row],[CONTA-QUILÓMETROS \nFINAL]]-Despesas[[#This Row],[CONTA-QUILÓMETROS \nINICIAL]])*(TaxaDeQuilometragem))))","v":""}]
[{"$nulls":11},{"$f":"IF(COUNTA(Despesas[[#This Row],[CONTA-QUILÓMETROS \nINICIAL]:[CONTA-QUILÓMETROS \nFINAL]])=2,(Despesas[[#This Row],[CONTA-QUILÓMETROS \nFINAL]]-Despesas[[#This Row],[CONTA-QUILÓMETROS \nINICIAL]])*TaxaDeQuilometragem,\"\")","v":""},{"$f":"IF(COUNTA(Despesas[[#This Row],[DATA]:[CONTA-QUILÓMETROS \nFINAL]])=0,\"\",SUM(Despesas[[#This Row],[HOTEL]:[TRANSPORTE]],Despesas[[#This Row],[REFEIÇÕES]:[DIVERSOS]],((Despesas[[#This Row],[CONTA-QUILÓMETROS \nFINAL]]-Despesas[[#This Row],[CONTA-QUILÓMETROS \nINICIAL]])*(TaxaDeQuilometragem))))","v":""}]
[{"$nulls":11},{"$f":"IF(COUNTA(Despesas[[#This Row],[CONTA-QUILÓMETROS \nINICIAL]:[CONTA-QUILÓMETROS \nFINAL]])=2,(Despesas[[#This Row],[CONTA-QUILÓMETROS \nFINAL]]-Despesas[[#This Row],[CONTA-QUILÓMETROS \nINICIAL]])*TaxaDeQuilometragem,\"\")","v":""},{"$f":"IF(COUNTA(Despesas[[#This Row],[DATA]:[CONTA-QUILÓMETROS \nFINAL]])=0,\"\",SUM(Despesas[[#This Row],[HOTEL]:[TRANSPORTE]],Despesas[[#This Row],[REFEIÇÕES]:[DIVERSOS]],((Despesas[[#This Row],[CONTA-QUILÓMETROS \nFINAL]]-Despesas[[#This Row],[CONTA-QUILÓMETROS \nINICIAL]])*(TaxaDeQuilometragem))))","v":""}]
[{"$nulls":11},{"$f":"IF(COUNTA(Despesas[[#This Row],[CONTA-QUILÓMETROS \nINICIAL]:[CONTA-QUILÓMETROS \nFINAL]])=2,(Despesas[[#This Row],[CONTA-QUILÓMETROS \nFINAL]]-Despesas[[#This Row],[CONTA-QUILÓMETROS \nINICIAL]])*TaxaDeQuilometragem,\"\")","v":""},{"$f":"IF(COUNTA(Despesas[[#This Row],[DATA]:[CONTA-QUILÓMETROS \nFINAL]])=0,\"\",SUM(Despesas[[#This Row],[HOTEL]:[TRANSPORTE]],Despesas[[#This Row],[REFEIÇÕES]:[DIVERSOS]],((Despesas[[#This Row],[CONTA-QUILÓMETROS \nFINAL]]-Despesas[[#This Row],[CONTA-QUILÓMETROS \nINICIAL]])*(TaxaDeQuilometragem))))","v":""}]
[{"$nulls":11},{"$f":"IF(COUNTA(Despesas[[#This Row],[CONTA-QUILÓMETROS \nINICIAL]:[CONTA-QUILÓMETROS \nFINAL]])=2,(Despesas[[#This Row],[CONTA-QUILÓMETROS \nFINAL]]-Despesas[[#This Row],[CONTA-QUILÓMETROS \nINICIAL]])*TaxaDeQuilometragem,\"\")","v":""},{"$f":"IF(COUNTA(Despesas[[#This Row],[DATA]:[CONTA-QUILÓMETROS \nFINAL]])=0,\"\",SUM(Despesas[[#This Row],[HOTEL]:[TRANSPORTE]],Despesas[[#This Row],[REFEIÇÕES]:[DIVERSOS]],((Despesas[[#This Row],[CONTA-QUILÓMETROS \nFINAL]]-Despesas[[#This Row],[CONTA-QUILÓMETROS \nINICIAL]])*(TaxaDeQuilometragem))))","v":""}]
[{"$nulls":11},{"$f":"IF(COUNTA(Despesas[[#This Row],[CONTA-QUILÓMETROS \nINICIAL]:[CONTA-QUILÓMETROS \nFINAL]])=2,(Despesas[[#This Row],[CONTA-QUILÓMETROS \nFINAL]]-Despesas[[#This Row],[CONTA-QUILÓMETROS \nINICIAL]])*TaxaDeQuilometragem,\"\")","v":""},{"$f":"IF(COUNTA(Despesas[[#This Row],[DATA]:[CONTA-QUILÓMETROS \nFINAL]])=0,\"\",SUM(Despesas[[#This Row],[HOTEL]:[TRANSPORTE]],Despesas[[#This Row],[REFEIÇÕES]:[DIVERSOS]],((Despesas[[#This Row],[CONTA-QUILÓMETROS \nFINAL]]-Despesas[[#This Row],[CONTA-QUILÓMETROS \nINICIAL]])*(TaxaDeQuilometragem))))","v":""}]
[{"$nulls":11},{"$f":"IF(COUNTA(Despesas[[#This Row],[CONTA-QUILÓMETROS \nINICIAL]:[CONTA-QUILÓMETROS \nFINAL]])=2,(Despesas[[#This Row],[CONTA-QUILÓMETROS \nFINAL]]-Despesas[[#This Row],[CONTA-QUILÓMETROS \nINICIAL]])*TaxaDeQuilometragem,\"\")","v":""},{"$f":"IF(COUNTA(Despesas[[#This Row],[DATA]:[CONTA-QUILÓMETROS \nFINAL]])=0,\"\",SUM(Despesas[[#This Row],[HOTEL]:[TRANSPORTE]],Despesas[[#This Row],[REFEIÇÕES]:[DIVERSOS]],((Despesas[[#This Row],[CONTA-QUILÓMETROS \nFINAL]]-Despesas[[#This Row],[CONTA-QUILÓMETROS \nINICIAL]])*(TaxaDeQuilometragem))))","v":""}]
[null,"TOTAIS",null,null,{"$f":"SUBTOTAL(109,Despesas[HOTEL])","v":{"v":445,"d":"445.00 €"}},{"$f":"SUBTOTAL(109,Despesas[TRANSPORTE])","v":{"v":225,"d":"225.00 €"}},{"$f":"SUBTOTAL(109,Despesas[REFEIÇÕES])","v":{"v":20,"d":"20.00 €"}},{"$f":"SUBTOTAL(109,Despesas[TELEFONE])","v":0},{"$f":"SUBTOTAL(109,Despesas[DIVERSOS])","v":{"v":55,"d":"55.00 €"}},{"$nulls":3},{"$f":"SUBTOTAL(109,Despesas[[TOTAL ]])","v":{"v":813.8500000000004,"d":"813.85 €"}}]
[{"$nulls":11},"ADIANTAMENTOS",{"v":0,"d":"0.00 €"}]
[{"$nulls":11},"TOTAL",{"$f":"Despesas[[#Totals],[TOTAL ]]-Adiantamentos","v":{"v":813.8500000000004,"d":"813.85 €"}}]